bitfinex/quotes_SOLUSD_20240621
["timestamp","ask_amount","ask_price","bid_price","bid_amount"]
[1718959169911,23.0172,131.35,131.28,0.34]
[1718959170104,9.76,131.31,131.28,0.34]
[1718959170303,9.76,131.31,131.27,16.4674]
[1718959171402,9.76,131.31,131.28,0.34]
[1718959172101,9.76,131.31,131.28,0.17]
[1718959173026,9.76,131.32,131.28,0.17]
[1718959173236,20.0,131.38,131.28,0.34]
[1718959173427,9.76,131.33,131.28,10.1]
[1718959173939,9.76,131.33,131.28,0.34]
[1718959174406,20.0,131.38,131.28,0.34]
[1718959174407,20.0,131.38,131.29,9.76]
[1718959174611,9.76,131.35,131.3,0.34]
[1718959175112,9.76,131.34,131.3,0.34]
[1718959175637,60.8749,131.39,131.31,0.17]
[1718959175800,9.76,131.34,131.29,10.1]
[1718959176517,60.8749,131.39,131.29,10.1]
[1718959176820,9.76,131.34,131.29,10.1]
[1718959177799,20.0,131.38,131.29,0.34]
[1718959178022,20.0,131.38,131.27,26.2274]
[1718959178023,9.76,131.32,131.28,0.34]
[1718959178227,20.0,131.38,131.28,0.34]
[1718959178429,9.76,131.33,131.28,0.34]
[1718959178921,9.76,131.33,131.28,10.1]
[1718959179314,9.76,131.34,131.28,10.1]
[1718959179832,9.76,131.34,131.28,16.1937]
[1718959180128,20.0,131.38,131.28,0.34]
[1718959180332,9.76,131.35,131.29,9.76]
[1718959180509,9.76,131.34,131.3,0.34]
[1718959180708,9.76,131.34,131.31,0.17]
[1718959181404,9.76,131.34,131.3,0.34]
[1718959182022,9.76,131.34,131.28,9.76]
[1718959182225,9.76,131.34,131.29,0.34]
[1718959182525,9.76,131.32,131.27,16.4674]
[1718959183410,9.76,131.31,131.27,16.4674]
[1718959185510,9.76,131.3,131.27,16.4674]
[1718959186300,20.0,131.38,131.27,16.4674]
[1718959186506,0.17,131.37,131.27,16.4674]
[1718959186727,9.76,131.31,131.27,16.4674]
[1718959188211,0.17,131.37,131.28,0.17]
[1718959188428,9.76,131.33,131.28,0.17]
[1718959189922,9.76,131.32,131.28,0.17]
[1718959190615,9.76,131.32,131.27,16.4674]
[1718959192313,20.0,131.38,131.27,16.4674]
[1718959192636,20.0,131.38,131.28,0.17]
[1718959192935,9.76,131.32,131.28,0.34]
[1718959193260,9.76,131.32,131.28,0.17]
[1718959193530,9.76,131.32,131.27,16.4674]
[1718959196536,25.02204977,131.38,131.27,16.4674]
[1718959196837,20.0,131.38,131.28,0.17]
[1718959197019,9.76,131.33,131.28,0.34]
[1718959197216,9.76,131.33,131.28,10.1]
[1718959197648,20.0,131.38,131.28,16.1936]
[1718959197804,20.0,131.38,131.28,10.1]
[1718959197805,9.76,131.33,131.28,10.1]
[1718959198208,9.76,131.33,131.28,0.34]
[1718959200439,9.76,131.32,131.27,16.4674]
[1718959200617,9.76,131.31,131.27,16.4674]
[1718959204335,20.0,131.38,131.28,0.17]
[1718959204544,9.76,131.33,131.28,0.34]
[1718959204912,20.0,131.38,131.28,0.34]
[1718959205408,20.0,131.38,131.29,9.76]
[1718959205611,9.76,131.36,131.3,10.1]
[1718959205948,9.76,131.36,131.3,9.93]
[1718959206245,22.6738,131.42,131.31,15.5911]
[1718959206410,22.6738,131.42,131.32,0.34]
[1718959206915,9.76,131.36,131.32,0.34]
[1718959207545,22.6738,131.42,131.32,0.34]
[1718959207828,9.76,131.38,131.32,10.1]
[1718959209025,20.0,131.41,131.32,0.34]
[1718959209026,9.76,131.37,131.32,0.34]
[1718959209408,9.76,131.33,131.28,15.1969]
[1718959209607,42.2195,131.36,131.28,15.1969]
[1718959209608,9.76,131.31,131.28,15.1969]
[1718959210222,22.2195,131.36,131.28,15.1969]
[1718959210527,9.76,131.31,131.28,15.1969]
[1718959210923,20.0,131.35,131.28,15.1969]
[1718959211235,9.76,131.31,131.28,15.1969]
[1718959211941,20.0,131.35,131.28,24.9569]
[1718959212240,9.76,131.34,131.29,0.17]
[1718959212437,9.76,131.33,131.29,0.34]
[1718959212835,59.04,131.39,131.29,0.34]
[1718959213024,9.76,131.34,131.29,0.34]
[1718959213923,9.76,131.33,131.29,0.34]
[1718959214934,9.76,131.34,131.29,0.34]
[1718959215541,59.04,131.39,131.29,0.34]
[1718959215715,9.76,131.35,131.29,10.1]
[1718959216238,20.0,131.39,131.29,10.1]
[1718959216407,9.76,131.35,131.29,10.1]
[1718959216842,59.04,131.39,131.29,55.73]
[1718959217015,9.76,131.36,131.3,9.76]
[1718959217227,9.76,131.36,131.31,0.34]
[1718959217614,20.0,131.39,131.31,10.1]
[1718959217817,9.76,131.36,131.31,0.34]
[1718959218020,9.76,131.36,131.3,0.34]
[1718959218230,9.76,131.35,131.3,0.34]
[1718959219631,59.04,131.39,131.3,0.34]
[1718959219940,59.04,131.39,131.31,9.76]
[1718959219941,9.76,131.37,131.31,9.76]
[1718959220149,9.76,131.37,131.32,0.34]
[1718959220756,20.0,131.39,131.33,15.234]
[1718959221061,9.76,131.39,131.34,0.34]
[1718959221750,20.0,131.43,131.34,0.34]
[1718959221751,9.76,131.38,131.34,0.34]
[1718959223751,9.76,131.37,131.34,0.17]
[1718959223928,9.76,131.36,131.33,15.234]
[1718959224726,20.0,131.43,131.33,15.234]
[1718959224927,9.76,131.37,131.34,0.34]
[1718959225878,20.0,131.43,131.34,0.34]
[1718959226157,9.76,131.38,131.34,0.34]
[1718959226545,20.0,131.43,131.34,0.34]
[1718959226728,9.76,131.38,131.34,0.34]
[1718959227042,9.76,131.38,131.33,15.234]
[1718959227043,20.0,131.43,131.33,15.234]
[1718959227249,9.76,131.34,131.29,16.0348]
[1718959227835,39.04,131.39,131.29,31.8881]
[1718959228029,20.0,131.38,131.29,31.8881]
[1718959228351,9.76,131.35,131.29,25.7948]
[1718959228727,9.76,131.35,131.3,0.34]
[1718959228936,9.76,131.36,131.3,10.1]
[1718959230033,9.76,131.38,131.32,9.76]
[1718959230238,9.76,131.38,131.33,0.34]
[1718959231054,9.76,131.37,131.32,0.34]
[1718959231265,9.76,131.37,131.32,9.76]
[1718959231437,9.76,131.37,131.33,0.34]
[1718959232343,9.76,131.38,131.33,0.34]
[1718959233462,29.27,131.42,131.33,0.34]
[1718959233763,20.0,131.43,131.29,16.0348]
[1718959233764,29.27,131.39,131.29,16.0348]
[1718959233946,20.0,131.38,131.29,16.0348]
[1718959234656,51.9422,131.39,131.3,6.0928]
[1718959235269,15.6484,131.45,131.33,15.0136]
[1718959235562,15.6484,131.45,131.35,6.0902]
[1718959235563,20.0,131.44,131.35,6.0902]
[1718959235745,6.3052,131.46,131.37,15.0136]
[1718959235947,6.3052,131.46,131.38,0.34]
[1718959237238,20.0,131.45,131.38,0.34]
[1718959237943,6.446,131.5,131.38,66.14]
[1718959238148,20.0,131.49,131.38,43.25]
[1718959238360,29.27,131.52,131.43,15.1723]
[1718959238557,29.27,131.52,131.44,0.34]
[1718959239765,29.27,131.52,131.43,15.1723]
[1718959239936,29.27,131.49,131.39,15.1723]
[1718959240135,29.27,131.49,131.4,0.17]
[1718959240872,20.0,131.48,131.4,0.17]
[1718959241048,20.0,131.48,131.39,15.1723]
[1718959241049,29.27,131.46,131.39,15.1723]
[1718959241258,20.0,131.45,131.39,15.1723]
[1718959242250,20.0,131.45,131.34,45.8]
[1718959242572,20.0,131.45,131.35,15.2179]
[1718959242870,20.0,131.45,131.36,0.17]
[1718959243050,20.0,131.45,131.36,0.34]
[1718959245466,29.27,131.43,131.36,0.17]
[1718959245669,20.0,131.42,131.36,0.34]
[1718959246139,20.0,131.42,131.36,0.17]
[1718959247654,20.0,131.42,131.36,0.34]
[1718959250374,20.0,131.45,131.36,0.34]
[1718959253409,20.0,131.45,131.36,52.23]
[1718959253672,29.27,131.46,131.37,51.8895]
[1718959253867,29.27,131.46,131.38,0.34]
[1718959254851,29.27,131.46,131.39,0.17]
[1718959255049,29.27,131.46,131.37,0.34]
[1718959255463,29.27,131.46,131.35,15.2179]
[1718959255664,20.0,131.45,131.35,15.2179]
[1718959256660,20.0,131.45,131.36,6.2598]
[1718959256877,20.0,131.45,131.37,0.17]
[1718959257191,20.0,131.45,131.36,6.4298]
[1718959257385,20.0,131.45,131.36,52.2298]
[1718959257585,20.0,131.45,131.38,45.8]
[1718959257782,20.0,131.49,131.39,0.34]
[1718959258581,29.27,131.47,131.39,0.34]
[1718959258988,20.0,131.46,131.39,0.34]
[1718959260875,20.0,131.46,131.4,0.17]
[1718959261076,20.0,131.46,131.38,0.34]
[1718959262213,21.7226,131.5,131.4,61.592]
[1718959262214,50.9926,131.5,131.4,61.592]
[1718959262373,20.0,131.49,131.41,0.34]
[1718959262992,284.37,131.52,131.41,6.4275]
[1718959263216,29.27,131.52,131.41,6.4275]
[1718959263680,29.27,131.52,131.41,0.34]
[1718959264399,20.0,131.51,131.41,0.34]
[1718959265716,20.0,131.51,131.42,45.8]
[1718959265997,20.0,131.51,131.43,0.34]
[1718959265998,29.27,131.51,131.43,0.34]
[1718959266906,29.27,131.51,131.44,0.17]
[1718959267083,29.27,131.51,131.42,0.34]
[1718959267300,29.27,131.51,131.42,52.2273]
[1718959267686,20.0,131.52,131.42,46.14]
[1718959268504,29.27,131.51,131.42,46.14]
[1718959268685,29.27,131.51,131.4,15.792]
[1718959268898,29.27,131.48,131.4,15.792]
[1718959269090,29.27,131.45,131.4,15.792]
[1718959269409,29.27,131.47,131.4,15.792]
[1718959269583,20.0,131.46,131.4,15.792]
[1718959270502,29.27,131.47,131.4,15.792]
[1718959270699,29.27,131.47,131.41,0.34]
[1718959272800,29.27,131.5,131.41,0.34]
[1718959273012,20.0,131.49,131.41,0.34]
[1718959273215,20.0,131.49,131.41,52.2277]
[1718959273515,6.2288,131.53,131.42,6.087]
[1718959273678,35.4988,131.53,131.43,0.17]
[1718959273874,35.4988,131.53,131.43,0.34]
[1718959275503,20.0,131.52,131.43,0.34]
[1718959276305,20.0,131.52,131.45,6.0857]
[1718959276479,20.0,131.53,131.46,0.34]
[1718959277096,29.27,131.54,131.45,0.34]
[1718959280110,29.27,131.54,131.45,52.2258]
[1718959280408,29.27,131.54,131.45,52.2259]
[1718959281003,29.27,131.57,131.48,16.3419]
[1718959281308,20.0,131.56,131.49,0.34]
[1718959283611,20.0,131.57,131.49,0.34]
[1718959283815,29.27,131.58,131.49,0.34]
[1718959284113,20.0,131.57,131.49,0.34]
[1718959285802,20.0,131.57,131.49,20.34]
[1718959286716,20.0,131.57,131.49,0.34]
[1718959291206,29.27,131.55,131.48,16.3419]
[1718959291409,29.27,131.52,131.48,16.3419]
[1718959291722,29.27,131.52,131.43,6.0868]
[1718959291723,29.27,131.52,131.41,22.5742]
[1718959292208,20.0,131.51,131.42,45.8]
[1718959292414,20.0,131.51,131.42,51.887]
[1718959292586,20.0,131.51,131.43,6.0868]
[1718959292788,20.0,131.51,131.42,51.887]
[1718959293794,20.0,131.51,131.43,0.17]
[1718959294403,20.0,131.51,131.44,6.0864]
[1718959294593,29.27,131.52,131.45,16.8268]
[1718959294798,6.0295,131.57,131.45,68.7127]
[1718959295024,29.27,131.55,131.45,68.7127]
[1718959295334,29.27,131.55,131.47,45.8]
[1718959295335,20.0,131.54,131.47,45.8]
[1718959295616,45.0498,131.58,131.49,16.4868]
[1718959295833,45.0498,131.58,131.5,0.34]
[1718959295834,29.27,131.58,131.5,0.34]
[1718959297124,20.0,131.57,131.5,0.34]
[1718959298096,29.27,131.58,131.5,0.34]
[1718959300420,29.27,131.58,131.5,6.4234]
[1718959300604,29.27,131.58,131.51,20.0]
[1718959300803,29.27,131.58,131.52,0.34]
[1718959306125,29.27,131.58,131.53,0.17]
[1718959306319,29.27,131.58,131.51,0.34]
[1718959309712,29.27,131.58,131.5,45.8]
[1718959310505,29.27,131.58,131.49,16.4868]
[1718959311020,29.27,131.55,131.49,16.4868]
[1718959311919,35.7487,131.58,131.49,16.4868]
[1718959312230,20.0,131.57,131.49,16.4868]
[1718959312734,20.0,131.57,131.5,0.34]
[1718959315736,29.27,131.55,131.5,0.34]
[1718959321240,29.27,131.55,131.49,16.4868]
[1718959324726,20.0,131.54,131.45,16.3537]
[1718959325135,49.27,131.54,131.45,16.3537]
[1718959325826,29.27,131.51,131.45,16.3537]
[1718959326029,20.0,131.5,131.45,16.3537]
[1718959326549,29.27,131.51,131.45,16.3537]
[1718959327416,29.27,131.51,131.46,0.17]
[1718959328527,29.27,131.54,131.46,0.17]
[1718959328729,29.27,131.54,131.46,0.34]
[1718959328730,20.0,131.53,131.46,0.34]
[1718959331120,20.0,131.53,131.45,16.3537]
[1718959332620,20.0,131.53,131.46,0.34]
[1718959332819,29.27,131.51,131.46,0.17]
[1718959333141,29.27,131.51,131.45,16.3537]
[1718959334058,20.0,131.5,131.45,16.3537]
[1718959337056,16.3262,131.55,131.45,16.3537]
[1718959337057,45.5962,131.55,131.46,0.34]
[1718959337349,28.16882012,131.59,131.47,51.8849]
[1718959337554,28.16882012,131.59,131.49,16.4976]
[1718959337555,29.27,131.57,131.49,16.4976]
[1718959337765,29.27,131.57,131.5,0.17]
[1718959338058,29.27,131.54,131.49,16.4976]
[1718959339022,29.27,131.54,131.48,0.34]
[1718959339231,29.27,131.51,131.43,15.2674]
[1718959339647,20.0,131.5,131.43,15.2674]
[1718959341134,20.0,131.5,131.44,0.17]
[1718959341344,51.9697,131.53,131.44,0.17]
[1718959341545,20.0,131.52,131.44,52.056]
[1718959341851,20.0,131.52,131.44,45.97]
[1718959342024,20.0,131.52,131.45,0.17]
[1718959342432,20.0,131.53,131.44,46.14]
[1718959342821,20.0,131.53,131.44,52.2263]
[1718959343946,20.0,131.53,131.44,46.14]
[1718959344148,20.0,131.53,131.43,15.2674]
[1718959344531,20.0,131.53,131.43,61.0674]
[1718959344853,20.0,131.53,131.44,51.8863]
[1718959345370,20.0,131.53,131.45,0.17]
[1718959345664,20.0,131.53,131.45,0.34]
[1718959347639,29.27,131.55,131.46,22.0262]
[1718959347843,7.89983419,131.59,131.46,22.0262]
[1718959347844,29.27,131.56,131.47,6.4249]
[1718959348158,20.0,131.55,131.47,6.4249]
[1718959348369,20.0,131.55,131.47,0.34]
[1718959350749,29.27,131.56,131.47,52.2248]
[1718959351138,29.27,131.56,131.47,46.14]
[1718959353058,29.27,131.56,131.47,0.34]
[1718959353259,29.27,131.56,131.47,20.34]
[1718959353860,29.27,131.56,131.47,26.4248]
[1718959356161,295.97974133,131.6,131.46,61.7408]
[1718959356342,29.27,131.56,131.48,6.0843]
[1718959356543,20.0,131.55,131.48,6.0843]
[1718959357072,20.0,131.55,131.47,6.0848]
[1718959357369,20.0,131.55,131.48,0.17]
[1718959357540,20.0,131.55,131.48,0.34]
[1718959358147,20.0,131.55,131.48,6.4244]
[1718959358349,20.0,131.55,131.46,15.9408]
[1718959358742,20.0,131.55,131.46,22.0262]
[1718959359266,20.0,131.55,131.46,15.9408]
[1718959359464,29.27,131.53,131.46,15.9408]
[1718959361637,29.27,131.53,131.47,0.34]
[1718959363468,29.27,131.54,131.47,0.34]
[1718959363851,20.0,131.53,131.47,0.34]
[1718959364671,29.27,131.54,131.47,0.34]
[1718959365869,29.27,131.57,131.48,62.0024]
[1718959366046,29.27,131.57,131.49,0.34]
[1718959366568,29.27,131.57,131.49,20.34]
[1718959367272,29.27,131.57,131.49,0.34]
[1718959372965,29.27,131.58,131.49,0.34]
[1718959373522,6.2452,131.6,131.49,0.34]
[1718959373694,49.27,131.59,131.49,46.14]
[1718959373979,269.30557406,131.64,131.51,15.8314]
[1718959374179,269.30557406,131.64,131.53,15.8314]
[1718959374384,269.30557406,131.64,131.54,0.34]
[1718959374385,6.2579,131.64,131.54,0.34]
[1718959375459,20.0,131.63,131.54,0.34]
[1718959377295,20.0,131.63,131.54,1.85620433]
[1718959377597,20.0,131.64,131.54,1.85620433]
[1718959377892,20.0,131.64,131.54,21.85620433]
[1718959378995,20.0,131.64,131.55,45.8]
[1718959379180,20.0,131.64,131.56,0.34]
[1718959382093,20.0,131.64,131.55,0.34]
[1718959382469,49.27,131.64,131.56,15.5161]
[1718959382681,49.27,131.64,131.57,0.34]
[1718959384468,6.5847,131.67,131.58,15.5161]
[1718959384469,29.27,131.67,131.58,15.5161]
[1718959384693,29.27,131.67,131.59,0.34]
[1718959385581,0.8139306,131.69,131.59,0.34]
[1718959385782,0.8139306,131.69,131.6,15.1681]
[1718959385981,0.8139306,131.69,131.61,0.34]
[1718959386189,0.8139306,131.69,131.61,20.34]
[1718959388911,0.8139306,131.69,131.61,0.34]
[1718959389108,29.27,131.68,131.61,0.34]
[1718959389895,20.0,131.67,131.61,0.17]
[1718959390193,20.0,131.67,131.6,15.1681]
[1718959390906,20.0,131.67,131.61,0.17]
[1718959391095,20.0,131.67,131.61,0.34]
[1718959392008,20.0,131.68,131.61,0.34]
[1718959397910,29.27,131.66,131.6,15.1681]
[1718959398088,20.0,131.65,131.6,15.1681]
[1718959398784,0.8139306,131.69,131.6,15.1681]
[1718959398988,29.27,131.68,131.6,15.1681]
[1718959399213,0.8139306,131.69,131.6,15.1681]
[1718959399488,0.8139306,131.69,131.61,20.17]
[1718959399693,0.8139306,131.69,131.62,0.17]
[1718959399930,20.8139306,131.69,131.62,0.17]
[1718959402619,0.8139306,131.69,131.62,0.17]
[1718959402916,0.8139306,131.69,131.63,16.5218]
[1718959403092,0.8139306,131.69,131.64,0.34]
[1718959406227,0.8139306,131.69,131.64,20.34]
[1718959407330,0.8139306,131.69,131.64,66.14]
[1718959410212,0.8139306,131.69,131.65,61.3785]
[1718959410528,20.0,131.75,131.67,6.0525]
[1718959410827,20.0,131.76,131.68,20.34]
[1718959413836,20.0,131.76,131.69,15.4898]
[1718959414122,29.27,131.77,131.7,0.34]
[1718959414321,29.27,131.77,131.7,20.34]
[1718959415513,38.8,131.81,131.7,20.34]
[1718959415807,9.7,131.73,131.7,20.34]
[1718959416513,20.0,131.8,131.71,45.8]
[1718959416708,9.7,131.76,131.73,15.5434]
[1718959416914,9.7,131.75,131.74,0.34]
[1718959417825,20.0,131.8,131.74,0.34]
[1718959418012,9.7,131.76,131.74,0.34]
[1718959418430,20.0,131.8,131.74,0.34]
[1718959418928,9.7,131.76,131.74,0.34]
[1718959419427,20.0,131.8,131.74,0.34]
[1718959419632,9.7,131.75,131.74,0.34]
[1718959420014,9.7,131.76,131.74,0.34]
[1718959420225,20.0,131.8,131.74,0.34]
[1718959420429,9.7,131.75,131.73,15.5434]
[1718959420628,9.7,131.74,131.73,15.5434]
[1718959421307,9.7,131.75,131.73,15.5434]
[1718959421832,9.7,131.76,131.74,0.34]
[1718959422216,38.8,131.81,131.74,0.34]
[1718959422532,9.7,131.76,131.74,0.34]
[1718959422718,20.0,131.8,131.74,0.34]
[1718959422719,9.7,131.75,131.74,0.34]
[1718959422916,9.7,131.76,131.74,0.34]
[1718959423216,20.0,131.8,131.74,0.34]
[1718959423534,20.0,131.8,131.74,0.17]
[1718959423737,9.7,131.75,131.74,0.17]
[1718959425021,9.7,131.75,131.74,0.34]
[1718959425241,20.8139306,131.82,131.74,0.34]
[1718959425412,9.7,131.75,131.74,0.34]
[1718959425813,9.7,131.76,131.74,0.34]
[1718959426068,38.8,131.81,131.74,0.34]
[1718959426239,9.7,131.76,131.74,0.34]
[1718959427233,9.7,131.78,131.74,0.34]
[1718959427419,9.7,131.78,131.74,20.34]
[1718959427837,9.7,131.75,131.74,0.17]
[1718959428026,9.7,131.75,131.74,20.17]
[1718959428225,9.7,131.75,131.74,0.17]
[1718959428541,9.7,131.75,131.73,15.5434]
[1718959428838,9.7,131.74,131.73,15.5434]
[1718959429034,9.7,131.74,131.73,15.7134]
[1718959429427,38.8,131.81,131.73,15.7134]
[1718959429747,9.7,131.75,131.74,0.34]
[1718959430236,20.8139306,131.82,131.74,0.34]
[1718959430444,9.7,131.75,131.74,0.34]
[1718959431249,9.7,131.75,131.74,0.17]
[1718959431426,29.11,131.79,131.74,0.17]
[1718959433925,20.8139306,131.82,131.74,0.17]
[1718959434251,29.11,131.81,131.74,0.34]
[1718959434456,29.11,131.81,131.74,20.34]
[1718959436253,20.8139306,131.82,131.74,66.14]
[1718959436455,0.8139306,131.82,131.74,66.14]
[1718959438044,0.8139306,131.82,131.74,20.34]
[1718959440145,29.11,131.8,131.73,15.5434]
[1718959441735,29.11,131.8,131.74,0.34]
[1718959442230,44.2919,131.8,131.69,45.8]
[1718959442444,29.11,131.77,131.7,15.3007]
[1718959442855,20.0,131.76,131.7,15.3007]
[1718959443654,20.0,131.76,131.71,0.17]
[1718959443856,20.0,131.76,131.71,0.34]
[1718959444046,21.2369,131.8,131.71,0.34]
[1718959444253,6.055,131.8,131.71,0.34]
[1718959444435,20.0,131.79,131.71,0.34]
[1718959445455,20.0,131.8,131.71,0.34]
[1718959445944,20.0,131.8,131.71,20.34]
[1718959449660,20.0,131.8,131.72,45.8]
[1718959449960,29.11,131.81,131.74,15.7274]
[1718959450144,29.11,131.81,131.75,20.34]
[1718959450341,0.8139306,131.82,131.75,66.14]
[1718959450541,0.8139306,131.82,131.76,62.4337]
[1718959450751,0.8139306,131.82,131.77,0.34]
[1718959451073,0.8139306,131.82,131.78,45.8]
[1718959451262,0.8139306,131.82,131.79,20.34]
[1718959451457,0.8139306,131.82,131.79,0.17]
[1718959451856,0.8139306,131.82,131.79,0.34]
[1718959452047,0.8139306,131.82,131.78,0.34]
[1718959452862,0.8139306,131.82,131.78,0.17]
[1718959454250,0.8139306,131.82,131.78,0.34]
[1718959457448,9.69,131.81,131.78,0.34]
[1718959457860,9.69,131.81,131.79,0.17]
[1718959458168,9.69,131.81,131.77,0.34]
[1718959459067,0.8139306,131.82,131.77,0.34]
[1718959459265,9.69,131.81,131.77,0.34]
[1718959459564,0.8139306,131.82,131.78,45.8]
[1718959459774,0.8139306,131.82,131.79,0.17]
[1718959460076,0.8139306,131.82,131.79,0.34]
[1718959460651,10.5039306,131.82,131.79,0.34]
[1718959461271,10.5039306,131.82,131.8,0.17]
[1718959461673,10.5039306,131.82,131.78,0.34]
[1718959461859,0.8139306,131.82,131.78,0.34]
[1718959462060,0.8139306,131.82,131.79,45.8]
[1718959462353,0.8139306,131.82,131.81,15.4573]
[1718959462555,0.8139306,131.82,131.81,15.7973]
[1718959466082,0.8139306,131.82,131.81,15.6273]
[1718959467490,0.8139306,131.82,131.81,15.7973]
[1718959469673,0.8139306,131.82,131.81,0.34]
[1718959469885,10.5039306,131.82,131.78,20.0]
[1718959470070,9.69,131.81,131.77,15.441]
[1718959470456,0.8139306,131.82,131.77,15.441]
[1718959470457,9.69,131.8,131.77,15.441]
[1718959470769,9.69,131.79,131.77,15.441]
[1718959470969,9.69,131.8,131.77,15.441]
[1718959471369,9.69,131.79,131.77,15.441]
[1718959471573,9.69,131.8,131.77,15.441]
[1718959473686,9.69,131.8,131.78,0.17]
[1718959474975,9.69,131.8,131.78,0.34]
[1718959475174,0.8139306,131.82,131.78,0.34]
[1718959475374,9.69,131.81,131.78,0.34]
[1718959475784,10.5039306,131.82,131.78,0.34]
[1718959475976,0.8139306,131.82,131.78,0.34]
[1718959476480,0.8139306,131.82,131.78,10.03]
[1718959476891,0.8139306,131.82,131.78,55.83]
[1718959478390,0.8139306,131.82,131.78,46.14]
[1718959480891,0.8139306,131.82,131.78,55.83]
[1718959481478,0.8139306,131.82,131.78,46.14]
[1718959481978,10.5039306,131.82,131.78,46.14]
[1718959484798,0.8139306,131.82,131.78,45.8]
[1718959484969,10.5039306,131.82,131.78,45.8]
[1718959486118,10.5039306,131.82,131.79,0.34]
[1718959487584,10.5039306,131.82,131.78,0.34]
[1718959491199,9.69,131.81,131.78,0.34]
[1718959491886,9.69,131.81,131.78,0.17]
[1718959492206,9.69,131.79,131.73,61.8956]
[1718959492501,9.69,131.77,131.73,61.8956]
[1718959492884,9.69,131.78,131.73,61.8956]
[1718959493083,0.8139306,131.82,131.73,61.8956]
[1718959493378,9.69,131.78,131.73,61.8956]
[1718959493985,9.69,131.78,131.73,16.0956]
[1718959494187,9.69,131.76,131.73,16.0956]
[1718959494902,9.69,131.77,131.73,16.0956]
[1718959495580,9.69,131.75,131.73,16.0956]
[1718959496375,9.69,131.76,131.73,16.0956]
[1718959496682,9.69,131.76,131.74,0.17]
[1718959496987,9.69,131.76,131.74,0.34]
[1718959497297,38.76,131.81,131.7,61.9151]
[1718959497298,9.69,131.75,131.7,61.9151]
[1718959497500,9.69,131.73,131.7,61.9151]
[1718959497884,22.8301,131.79,131.7,61.9151]
[1718959497885,9.69,131.74,131.7,61.9151]
[1718959498276,22.8301,131.79,131.7,61.9151]